Workbook

Sheet Tabela Mensal 2024
H1: v.04-2024
A5: PROGRAMA DE ATENÇÃO À CRIANÇA E AO ADOLESCENTE VÍTIMA DE VIOLÊNCIA
A6: NÚCLEO DE ATENDIMENTO ÀS CRIANÇAS E AOS ADOLESCENTES
A8: TABELA DE ATENDIMENTOS
A10: Período de execução: JAN-SET/2024
A11: 17 NACAS GESTÃO PRÓPRIA + 4 NACAS CONVENIADAS
A13: DADOS DE CRIANÇAS E ADOLESCENTES
A14: Total de Primeiras Entrevistas realizadas com crianças no mês | C14: Total de atendimentos* realizados com crianças no mês (incluir Primeiras Entrevistas) | E14: Total de Primeiras Entrevistas realizadas com adolescentes no mês | G14: Total de atendimentos* realizados com adolescentes no mês (incluir Primeiras Entrevistas)
A15: 1448 | C15: 2233 | E15: 749 | G15: 1555
A16: *Total de Primeiras Entrevistas realizadas com crianças e adolescentes: | E16: =A15+E15 -> 2197
A17: *Total de Atendimentos realizados com crianças e adolescentes: | E17: =C15+G15 -> 3788
A19: SEXO BIOLÓGICO DE CRIANÇAS (identificados na primeira entrevista)
A20: Feminino | C20: Masculino | E20: Total
A21: 956 | C21: 492 | E21: =A21+C21 -> 1448
A23: SEXO BIOLÓGICO DE ADOLESCENTES (identificados na primeira entrevista)
A24: Feminino | C24: Masculino | E24: Total
A25: 521 | C25: 228 | E25: =A25+C25 -> 749
A27: TIPIFICAÇÃO DA VIOLÊNCIA (NOTIFICADA) (na primeira entrevista)
A28: Psicológica | C28: Física | E28: Sexual | G28: Negligência
A29: 802 | C29: 515 | E29: 1131 | G29: 318
A31: TIPIFICAÇÃO DA VIOLÊNCIA (IDENTIFICADA) (identificados na primeira entrevista ou ao longo dos atendimentos)
A32: Psicológica | C32: Física | E32: Sexual | G32: Negligência
A33: 938 | C33: 379 | E33: 846 | G33: 230
A35: ATENDIMENTO DE FAMILIARES E ALEGADOS AUTORES DE VIOLÊNCIA
A36: Familiares* | E36: Alegadas(os) Autora(es) (quantitativo separado dos familiares)
A37: 4982 | E37: 876
A38: Atendimentos indiretos baseados em análise documentais dos casos | F38: 651
A40: Total de atendimentos realizados com Familiares, Alegados Autores e Análises Documentais | F40: =A37+E37+F38 -> 6509
A42: IDENTIFICAÇÃO DOS ALEGADOS(AS) AUTORES(RAS) ENTREVISTADOS(AS)*
A43: Pai | B43: Mãe | C43: Irmão | D43: Irmã | E43: Avô | F43: Avó | G43: Padrasto | H43: Madrasta
A44: 315 | B44: 257 | C44: 22 | D44: 2 | E44: 50 | F44: 19 | G44: 101 | H44: 10
A45: =A44/C49*1 -> 0.3629032258 | B45: =B44/C49*1 -> 0.2960829493 | C45: =C44/C49*1 -> 0.02534562212 | D45: =D44/C49*1 -> 0.002304147465 | E45: =E44/C49*1 -> 0.05760368664 | F45: =F44/C49*1 -> 0.02188940092 | G45: =G44/C49*1 -> 0.116359447 | H45: =H44/C49*1 -> 0.01152073733
A46: Cuidador | B46: Cuidadora | C46: Tio | D46: Tia | E46: Primo | F46: Prima | G46: Outros
A47: 0 | B47: 1 | C47: 30 | D47: 6 | E47: 9 | F47: 0 | G47: 46
B48: =B47/C49*1 -> 0.001152073733 | C48: =C47/C49*1 -> 0.03456221198 | D48: =D47/C49*1 -> 0.006912442396 | E48: =E47/C49*1 -> 0.01036866359 | G48: =G47/C49*1 -> 0.05299539171
A49: TOTAL | C49: =A44+B44+C44+D44+E44+F44+G44+H44+A47+B47+C47+D47+E47+F47+G47 -> 868 | E49: TOTAL | G49: =A45+B45+C45+D45+E45+F45+G45+H45+B48+C48+D48+E48+G48 -> 1
